bitfinex-derivatives/quotes_BTCF0:USTF0_20240814
["timestamp","ask_amount","ask_price","bid_price","bid_amount"]
[1723626653227,0.1144,60921.0,60920.0,0.1363941]
[1723626653619,0.001,60921.0,60920.0,1.0288341]
[1723626653826,0.001,60921.0,60920.0,1.1422341]
[1723626655424,0.1144,60921.0,60920.0,0.1363941]
[1723626655821,0.1144,60921.0,60920.0,0.0543461]
[1723626656022,0.196447,60921.0,60920.0,0.0543461]
[1723626657918,0.083047,60921.0,60920.0,0.0543461]
[1723626659726,0.083047,60921.0,60920.0,0.1033679]
[1723626660434,0.083047,60921.0,60920.0,0.0543461]
[1723626660939,0.165094,60921.0,60920.0,0.0543461]
[1723626661123,0.165094,60921.0,60920.0,0.0062461]
[1723626661526,0.31259004,60921.0,60920.0,0.0062461]
[1723626661727,0.247141,60921.0,60920.0,0.0062461]
[1723626664131,0.23051841,60921.0,60920.0,0.0062461]
[1723626666025,0.165094,60921.0,60920.0,0.0062461]
[1723626668928,0.164094,60921.0,60920.0,0.0002461]
[1723626669131,0.24599533,60921.0,60920.0,0.0042461]
[1723626669635,0.164094,60921.0,60920.0,0.0042461]
[1723626670835,0.082047,60921.0,60920.0,0.0042461]
[1723626673027,0.16394833,60921.0,60920.0,0.0042461]
[1723626674039,0.10864885,60921.0,60920.0,0.0042461]
[1723626674424,0.16393523,60921.0,60920.0,0.0042461]
[1723626674831,0.082047,60921.0,60920.0,0.0042461]
[1723626678029,0.14756411,60921.0,60920.0,0.0042461]
[1723626678236,0.082047,60921.0,60920.0,0.0042461]
[1723626679939,0.195547,60921.0,60920.0,0.0042461]
[1723626680341,0.277594,60921.0,60920.0,0.0042461]
[1723626686245,0.35948223,60921.0,60920.0,0.0042461]
[1723626686644,0.44152923,60921.0,60920.0,0.0042461]
[1723626686834,0.38624095,60921.0,60920.0,0.0042461]
[1723626689540,1.10784095,60921.0,60920.0,0.0042461]
[1723626693048,0.164114,60913.0,60912.0,0.00017511]
[1723626693351,0.082067,60906.0,60905.0,0.0491747]
[1723626693539,0.082068,60905.0,60904.0,0.0491747]
[1723626693744,0.195568,60905.0,60904.0,0.0491747]
[1723626694147,0.082069,60904.0,60903.0,0.0491747]
[1723626694452,0.082069,60904.0,60898.0,0.0002461]
[1723626694453,0.082072,60902.0,60901.0,0.0491747]
[1723626694643,0.26114639,60902.0,60901.0,0.0491747]
[1723626695049,0.195572,60902.0,60901.0,0.0491747]
[1723626695251,0.195572,60902.0,60898.0,0.0002461]
[1723626695252,0.17904965,60902.0,60899.0,0.0491747]
[1723626695443,0.082076,60899.0,60898.0,0.0002461]
[1723626696854,0.14762565,60899.0,60898.0,0.0002461]
[1723626697244,0.14757823,60899.0,60898.0,0.0002461]
[1723626697445,0.082076,60899.0,60898.0,0.0002461]
[1723626698856,0.083076,60899.0,60898.0,0.0002461]
[1723626700254,0.443876,60899.0,60898.0,0.0052461]
[1723626704060,0.525952,60899.0,60898.0,0.0052461]
[1723626710452,0.639452,60899.0,60898.0,0.0052461]
[1723626717167,0.70495423,60899.0,60898.0,0.0052461]
[1723626718267,0.639452,60899.0,60898.0,0.0052461]
[1723626719867,1.000252,60899.0,60898.0,0.0052461]
[1723626722876,1.02686183,60899.0,60898.0,0.0052461]
[1723626723266,1.02701328,60899.0,60898.0,0.0052461]
[1723626725765,0.98286128,60899.0,60892.0,0.04913371]
[1723626725970,0.98286128,60899.0,60890.0,0.04913371]
[1723626725971,0.4743,60893.0,60890.0,0.04913371]
[1723626726170,0.19551742,60891.0,60890.0,0.04913371]
[1723626726377,0.11365366,60891.0,60890.0,0.04913371]
[1723626726876,0.16418,60889.0,60888.0,0.04913371]
[1723626727176,0.16418,60889.0,60887.0,0.04913371]
[1723626727177,0.164182,60888.0,60887.0,0.04913371]
[1723626727372,0.082092,60887.0,60886.0,0.04913371]
[1723626727576,0.195592,60887.0,60886.0,0.04913371]
[1723626727765,0.195592,60887.0,60884.0,0.00016472]
[1723626727766,0.082095,60885.0,60884.0,0.00016472]
[1723626727970,0.59058649,60885.0,60884.0,0.00016472]
[1723626728170,0.70408649,60885.0,60884.0,0.04937449]
[1723626728566,0.63849,60885.0,60884.0,0.04937462]
[1723626729269,0.70405175,60885.0,60884.0,0.00016472]
[1723626730979,0.71382264,60885.0,60884.0,0.00016472]
[1723626731175,0.71479779,60885.0,60884.0,0.00016472]
[1723626731576,0.64926089,60885.0,60884.0,0.00016472]
[1723626731976,0.65026089,60885.0,60884.0,0.01116472]
[1723626732177,0.71578904,60885.0,60884.0,0.01116472]
[1723626733081,0.71478904,60885.0,60884.0,0.01116472]
[1723626733279,0.71478904,60885.0,60884.0,0.00016472]
[1723626733676,0.64926089,60885.0,60884.0,0.00016472]
[1723626734281,0.64940158,60885.0,60884.0,0.00016472]
[1723626734580,0.64940158,60885.0,60884.0,0.01316472]
[1723626734581,0.65040158,60885.0,60884.0,0.01316472]
[1723626735077,0.67701866,60885.0,60884.0,0.01316472]
[1723626735280,0.73225683,60885.0,60884.0,0.01316472]
[1723626735981,0.81435183,60885.0,60884.0,0.01316472]
[1723626736282,0.082108,60875.0,60874.0,0.0473]
[1723626736472,0.55660734,60875.0,60874.0,0.0473]
[1723626737776,0.55760734,60875.0,60874.0,0.0473]
[1723626737971,0.55760734,60875.0,60874.0,0.05681192]
[1723626740395,0.55760734,60875.0,60874.0,0.66311192]
[1723626740396,0.00119934,60875.0,60874.0,0.66311192]
[1723626740585,0.3608,60880.0,60874.0,1.06311192]
[1723626740887,0.0002463,60881.0,60880.0,0.082101]
[1723626741186,0.0002463,60881.0,60880.0,0.482101]
[1723626741387,0.0002463,60881.0,60879.0,0.00084]
[1723626741574,0.08221788,60880.0,60879.0,0.00084]
[1723626741778,0.00011688,60880.0,60877.0,0.04910965]
[1723626741978,0.082105,60877.0,60876.0,0.0456]
[1723626742177,0.1135,60879.0,60877.0,0.4928]
[1723626742380,0.1135,60879.0,60878.0,0.082104]
[1723626742676,0.1135,60879.0,60878.0,0.62401365]
[1723626742980,0.1135,60879.0,60878.0,1.02401365]
[1723626743375,0.195603,60879.0,60878.0,0.54190965]
[1723626743681,0.195603,60879.0,60877.0,0.04911671]
[1723626743682,0.1135,60879.0,60877.0,0.04911671]
[1723626743888,0.1135,60879.0,60876.0,0.09471671]
[1723626744385,0.082105,60878.0,60876.0,0.09471671]
[1723626744687,0.1135,60879.0,60876.0,0.09471671]
[1723626745185,0.082105,60877.0,60876.0,0.09471671]
[1723626745386,0.082105,60877.0,60876.0,0.127707]
[1723626745785,0.1135,60879.0,60876.0,0.5384]
[1723626745981,0.47441688,60880.0,60879.0,0.082103]
[1723626746487,0.47441688,60880.0,60879.0,0.62398721]
[1723626747076,0.47441688,60880.0,60879.0,0.574863]
[1723626748183,0.47441688,60880.0,60879.0,0.62398721]
[1723626748574,0.47441688,60880.0,60879.0,1.02398721]
[1723626748779,0.47441688,60880.0,60879.0,0.974863]
[1723626749290,0.47541688,60880.0,60879.0,0.575863]
[1723626749484,0.47541688,60880.0,60879.0,0.975863]
[1723626749789,0.47641688,60880.0,60879.0,0.976863]
[1723626751388,0.11561688,60880.0,60879.0,1.04225215]
[1723626752181,0.19771788,60880.0,60879.0,1.04225215]
[1723626753078,0.19771788,60880.0,60879.0,0.64225215]
[1723626753480,0.19771788,60880.0,60879.0,0.14949215]
[1723626753685,0.19771788,60880.0,60879.0,0.64225215]
[1723626754284,0.19771788,60880.0,60879.0,0.576863]
[1723626756587,0.19771788,60880.0,60879.0,0.084103]
[1723626759785,0.55851788,60880.0,60879.0,0.06760036]
[1723626759993,0.64061888,60880.0,60879.0,0.002]
[1723626760483,0.55851788,60880.0,60879.0,0.002]
[1723626760889,0.55851788,60880.0,60879.0,0.084103]
[1723626761092,0.55851788,60880.0,60879.0,0.14970336]
[1723626762890,0.55851788,60880.0,60879.0,0.084103]
[1723626763089,0.55851788,60880.0,60879.0,0.002]
[1723626763292,0.47641688,60880.0,60879.0,0.084103]
[1723626765087,0.36291688,60880.0,60879.0,0.084103]
[1723626765283,0.11561688,60880.0,60879.0,0.084103]
[1723626766996,0.19771788,60880.0,60879.0,0.002]
[1723626772299,0.26318445,60880.0,60879.0,0.002]
[1723626774306,0.26336916,60880.0,60879.0,0.002]
[1723626774607,0.19771788,60880.0,60879.0,0.002]
[1723626776409,0.27981888,60880.0,60879.0,0.002]
[1723626776607,0.27981888,60880.0,60879.0,0.06767319]
[1723626776907,0.3616521,60880.0,60879.0,0.05125581]
[1723626777202,0.36186823,60880.0,60879.0,0.05125581]
[1723626777598,0.47058599,60880.0,60879.0,0.05125581]
[1723626777800,0.47058599,60880.0,60872.0,0.04924866]
[1723626777801,1.08750779,60880.0,60872.0,0.04924866]
[1723626778001,0.082112,60872.0,60871.0,0.04917041]
[1723626778205,0.082112,60872.0,60871.0,0.00012109]
[1723626778206,0.16419824,60872.0,60871.0,0.00012109]
[1723626778406,0.30279824,60872.0,60871.0,0.00012109]
[1723626778612,0.22082888,60872.0,60871.0,0.00012109]
[1723626779113,0.30294088,60872.0,60871.0,0.00012109]
[1723626780401,0.41644088,60872.0,60871.0,0.00012109]
[1723626781010,0.41744088,60872.0,60871.0,0.00012109]
[1723626781305,0.27884088,60872.0,60871.0,0.00012109]
[1723626781507,0.34436839,60872.0,60871.0,0.00012109]
[1723626782308,0.34536839,60872.0,60871.0,0.00012109]
[1723626784509,0.27984088,60872.0,60871.0,0.00012109]
[1723626785607,0.19772888,60872.0,60871.0,0.00012109]
[1723626787214,0.19672888,60872.0,60871.0,0.00012109]
[1723626787413,0.19772888,60872.0,60871.0,0.00012109]
[1723626787714,0.27984088,60872.0,60871.0,0.00012109]
[1723626788313,0.19772888,60872.0,60871.0,0.00012109]
[1723626790703,0.08422888,60872.0,60871.0,0.00012109]
[1723626790906,0.19772888,60872.0,60871.0,0.00012109]
[1723626791907,0.27984088,60872.0,60871.0,0.00012109]
[1723626792111,0.19772888,60872.0,60871.0,0.00012109]
[1723626792312,0.27984088,60872.0,60871.0,0.00012109]
[1723626792511,0.19772888,60872.0,60871.0,0.00012109]
[1723626792711,0.27984088,60872.0,60871.0,0.00012109]
[1723626793917,0.19772888,60872.0,60871.0,0.00012109]
[1723626803639,0.55852888,60872.0,60871.0,0.00012109]
[1723626804843,0.55852888,60872.0,60863.0,2.8e-07]
[1723626804844,0.08212,60866.0,60863.0,2.8e-07]
[1723626805038,0.50853217,60864.0,60863.0,2.8e-07]
[1723626805229,0.4743,60864.0,60860.0,0.00938218]
[1723626805435,0.1135,60861.0,60858.0,0.0499]
[1723626806540,0.08213,60859.0,60858.0,0.132031]
[1723626806737,0.0823363,60859.0,60858.0,0.14150305]
[1723626807139,0.0823363,60859.0,60858.0,0.05937205]
[1723626807644,0.082131,60858.0,60856.0,0.08145495]
[1723626807839,0.195632,60857.0,60856.0,0.08145495]
[1723626808038,0.082135,60855.0,60854.0,0.00953432]
[1723626808340,0.082138,60853.0,60852.0,0.08145495]
[1723626808539,0.442938,60853.0,60852.0,0.2066013]
[1723626809852,0.442938,60853.0,60852.0,0.08145495]
[1723626810151,0.082139,60852.0,60851.0,0.17332183]
[1723626810541,0.082139,60852.0,60851.0,0.09186688]
[1723626810739,0.082139,60852.0,60851.0,0.00972688]
[1723626811038,0.082143,60849.0,60848.0,0.08145495]
[1723626811241,0.082143,60849.0,60848.0,0.2066031]
[1723626811748,0.082144,60848.0,60847.0,0.45173267]
[1723626811945,0.082144,60848.0,60847.0,0.57688108]
[1723626812353,0.082144,60848.0,60847.0,0.45173267]
[1723626812544,0.082144,60848.0,60847.0,0.37027772]
[1723626813258,0.164288,60848.0,60847.0,0.00947772]
[1723626813556,0.001,60852.0,60844.0,0.44225495]
[1723626813753,0.002,60852.0,60851.0,0.08214]
[1723626814242,0.002,60852.0,60851.0,0.57514]
[1723626814753,0.00024651,60854.0,60853.0,0.082138]
[1723626816456,0.08238251,60854.0,60853.0,0.082138]
[1723626817753,0.08338251,60854.0,60853.0,0.082138]
[1723626817957,0.00124651,60854.0,60853.0,0.082138]
[1723626818951,0.08338251,60854.0,60853.0,0.082138]
[1723626819156,0.08438251,60854.0,60853.0,0.082138]
[1723626827056,0.082139,60852.0,60851.0,0.00962918]
[1723626827259,0.082139,60852.0,60851.0,0.08214]
[1723626829067,0.083139,60852.0,60851.0,0.08214]
[1723626830257,0.084139,60852.0,60851.0,0.08214]
[1723626830964,0.002,60852.0,60851.0,0.08214]
[1723626831564,0.002,60852.0,60851.0,0.21219495]
[1723626831761,0.002,60852.0,60851.0,0.33733683]
[1723626831962,0.002,60852.0,60851.0,0.45093683]
[1723626832157,0.084139,60852.0,60851.0,0.20659683]
[1723626832364,0.084139,60852.0,60851.0,0.08145495]
[1723626832661,0.084139,60852.0,60851.0,0.2887373]
[1723626833161,0.002,60852.0,60851.0,0.4023373]
[1723626833355,0.002,60852.0,60851.0,0.32088235]
[1723626833870,0.002,60852.0,60851.0,1.37388235]
[1723626834363,0.002,60852.0,60851.0,1.07162829]
[1723626834563,0.00024651,60854.0,60853.0,0.082138]
[1723626834767,0.00024651,60854.0,60853.0,0.20728035]
[1723626835470,0.00024651,60854.0,60853.0,0.70028035]
[1723626835667,0.00024651,60854.0,60853.0,0.79802629]
[1723626836067,0.00024651,60854.0,60853.0,0.30502629]
[1723626836268,0.00024651,60854.0,60853.0,0.79802629]
[1723626836668,0.00024651,60854.0,60853.0,0.67288394]
[1723626836871,0.00024651,60854.0,60853.0,0.3050186]
[1723626837173,0.00024651,60854.0,60853.0,0.7980186]
[1723626837761,0.00124651,60854.0,60853.0,1.06107266]
[1723626837963,0.00224651,60854.0,60853.0,1.06307266]
[1723626838672,0.00224651,60854.0,60853.0,0.57007266]
[1723626840768,0.00224651,60854.0,60853.0,0.444938]
[1723626840970,0.00224651,60854.0,60853.0,1.61307008]
[1723626841179,0.00224651,60854.0,60853.0,1.69520808]
[1723626841369,0.3608,60865.0,60858.0,0.1136]
[1723626841566,0.3608,60865.0,60862.0,0.19567142]
[1723626842371,0.442922,60865.0,60864.0,0.082123]
[1723626842867,0.443922,60865.0,60864.0,0.082123]
[1723626843670,0.444922,60865.0,60864.0,0.082123]
[1723626844568,0.443922,60865.0,60864.0,0.082123]
[1723626844768,0.443922,60865.0,60864.0,0.09164321]
[1723626844968,0.443922,60865.0,60864.0,0.09464321]
[1723626845171,0.443922,60865.0,60864.0,0.09564321]
[1723626845673,0.444922,60865.0,60864.0,0.09564321]
[1723626846875,0.444922,60865.0,60864.0,0.01352021]
[1723626847378,0.558522,60865.0,60864.0,0.01352021]
[1723626848766,0.444922,60865.0,60864.0,0.01352021]
[1723626849181,0.444922,60865.0,60864.0,0.09564321]
[1723626849976,0.00024651,60870.0,60864.0,1.20292321]
[1723626850170,0.00024651,60870.0,60869.0,0.556516]
[1723626850775,0.00024651,60870.0,60869.0,0.63858742]
[1723626850969,0.00024651,60870.0,60869.0,0.76368703]
[1723626851373,0.3608,60877.0,60876.0,0.082107]
[1723626851666,0.3608,60877.0,60876.0,0.195707]
[1723626852263,0.1136,60881.0,60876.0,0.195707]
[1723626852264,0.1136,60881.0,60876.0,0.1136]
[1723626852869,0.082099,60882.0,60876.0,0.1136]
[1723626853075,0.00024651,60883.0,60880.0,0.1136]
[1723626853379,0.00024651,60883.0,60882.0,0.082099]
[1723626855872,0.00524651,60883.0,60882.0,0.082099]
[1723626859286,0.01024651,60883.0,60882.0,0.082099]
[1723626859779,0.01024651,60883.0,60882.0,0.574859]
[1723626860378,0.01024651,60883.0,60882.0,0.082099]
[1723626860583,0.01024651,60883.0,60882.0,0.574859]
[1723626860977,0.01024651,60883.0,60882.0,0.082099]
[1723626861370,0.01024651,60883.0,60882.0,0.574859]
[1723626861781,0.3608,60887.0,60886.0,0.082093]
[1723626861974,0.3608,60887.0,60886.0,0.195693]
[1723626863883,0.3698,60887.0,60886.0,0.196693]
[1723626864081,0.3788,60887.0,60886.0,0.197693]
[1723626864577,0.018,60887.0,60886.0,0.197693]
[1723626867184,0.018,60887.0,60886.0,0.20734275]
[1723626878491,0.018,60887.0,60886.0,0.27263979]
[1723626878796,0.018,60887.0,60886.0,0.19054679]
[1723626878990,0.100092,60887.0,60886.0,0.19054679]
[1723626879394,0.100092,60887.0,60886.0,0.12524975]
[1723626879592,0.100092,60887.0,60886.0,0.01164975]
[1723626880495,0.100092,60887.0,60886.0,0.19076093]
[1723626880889,0.100092,60887.0,60886.0,0.12524975]
[1723626881788,0.100092,60887.0,60886.0,0.19076093]
[1723626882390,0.100092,60887.0,60886.0,0.12524975]
[1723626890693,0.460892,60887.0,60886.0,0.12524975]
[1723626892005,0.100092,60887.0,60886.0,0.12524975]
[1723626892297,0.460892,60887.0,60886.0,0.12524975]
[1723626895503,0.460892,60887.0,60886.0,0.20734275]
[1723626897406,0.460892,60887.0,60886.0,0.12524975]
[1723626900401,0.018,60887.0,60886.0,0.37812021]
[1723626907603,0.018,60887.0,60886.0,0.37811147]
[1723626913921,0.018,60887.0,60886.0,0.53811147]
[1723626916024,0.018,60887.0,60886.0,0.41304275]
[1723626916219,0.018,60887.0,60886.0,0.53810964]
[1723626923526,0.018,60887.0,60886.0,0.63659534]
[1723626923830,0.08201343,60898.0,60886.0,0.59384211]
[1723626923831,0.06562796,60898.0,60886.0,0.59384211]
[1723626924036,0.14770396,60899.0,60897.0,0.1136]
[1723626924228,0.082076,60899.0,60898.0,0.17921643]
[1723626924419,0.082076,60899.0,60898.0,0.1136]
[1723626925832,0.442876,60899.0,60898.0,0.1136]
[1723626926720,0.3608,60899.0,60898.0,0.1136]
[1723626928734,0.3608,60899.0,60898.0,0.1231283]
[1723626929229,0.3608,60899.0,60898.0,0.1241283]
[1723626930734,0.3658,60899.0,60898.0,0.1251283]
[1723626931434,0.447876,60899.0,60898.0,0.1251283]
[1723626931832,0.561476,60899.0,60898.0,0.002]
[1723626932041,0.643552,60899.0,60898.0,0.002]
[1723626932225,0.643552,60899.0,60898.0,0.05118793]
[1723626932431,0.643552,60899.0,60898.0,0.002]
[1723626934533,0.65333236,60899.0,60898.0,0.002]
[1723626938536,1.05333236,60899.0,60898.0,0.002]
[1723626938742,1.62804836,60899.0,60898.0,0.002]
[1723626939042,1.62804836,60899.0,60897.0,0.04918793]
[1723626939043,0.164154,60898.0,60897.0,0.04918793]
[1723626939246,0.738871,60898.0,60897.0,0.0262421]
[1723626939439,1.138871,60898.0,60897.0,0.0262421]
[1723626940442,1.138871,60898.0,60897.0,0.0272421]
[1723626941046,1.138871,60898.0,60897.0,0.001]
[1723626941245,1.142871,60898.0,60897.0,0.001]
[1723626942748,1.149871,60898.0,60897.0,0.002]
[1723626943047,1.95348443,60898.0,60897.0,0.002]
[1723626945148,1.95348443,60898.0,60886.0,0.082092]
[1723626945149,0.082092,60887.0,60884.0,0.06559708]
[1723626945350,0.082092,60887.0,60873.0,2.42156008]
[1723626945351,0.082104,60878.0,60873.0,2.42156008]
[1723626945538,0.638618,60874.0,60873.0,2.42068]
[1723626946043,1.662267,60874.0,60873.0,2.42068]
[1723626946454,1.762267,60874.0,60873.0,2.15903387]
[1723626946747,1.78889204,60874.0,60873.0,0.72208981]
[1723626946945,1.82061368,60874.0,60873.0,0.41930781]
[1723626947153,1.88690148,60874.0,60873.0,0.16841081]
[1723626947346,1.89674073,60874.0,60873.0,0.13441081]
[1723626947747,0.164234,60868.0,60867.0,0.00024651]
[1723626947948,0.809034,60868.0,60867.0,0.00024651]
[1723626948147,1.60294542,60868.0,60846.0,0.082146]
[1723626948353,0.442942,60850.0,60844.0,0.048]
[1723626948654,0.3608,60845.0,60844.0,0.048]
[1723626948852,0.082152,60842.0,60841.0,0.046]
[1723626949147,0.3608,60845.0,60841.0,0.046]
[1723626950346,0.082152,60842.0,60841.0,0.046]
[1723626951347,0.3608,60845.0,60841.0,0.046]
[1723626951845,0.3618,60845.0,60841.0,0.053]
[1723626952152,0.3608,60850.0,60848.0,1.49386649]
[1723626952746,0.85384,60850.0,60848.0,1.49386649]
[1723626952948,0.575183,60849.0,60848.0,1.49386649]
[1723626953457,0.975183,60849.0,60848.0,1.49386649]
[1723626956056,0.976183,60849.0,60848.0,1.50786649]
[1723626956357,0.083143,60849.0,60848.0,1.50786649]
[1723626956855,0.576183,60849.0,60848.0,1.50786649]
[1723626957951,0.976183,60849.0,60848.0,1.50386649]
[1723626958345,0.576183,60849.0,60848.0,1.51286649]
[1723626958549,0.577183,60849.0,60848.0,1.51286649]
[1723626960057,0.084143,60849.0,60848.0,1.51286649]
[1723626961158,0.002,60849.0,60848.0,1.59501149]
[1723626961350,0.002,60849.0,60848.0,1.64251149]
[1723626961552,0.3608,60864.0,60848.0,1.60746649]
[1723626961845,0.3608,60864.0,60853.0,0.3608]
[1723626962053,0.3608,60867.0,60861.0,0.3608]
[1723626962277,0.3608,60867.0,60866.0,0.082121]
[1723626962455,0.00978465,60876.0,60871.0,0.082113]
[1723626962655,0.01,60876.0,60871.0,0.082113]
[1723626963356,0.092107,60876.0,60871.0,0.082113]
[1723626963553,0.092107,60876.0,60867.0,0.00024651]
[1723626963554,0.08211,60874.0,60867.0,0.00024651]
[1723626964059,0.082112,60873.0,60867.0,0.00024651]
[1723626964860,0.082112,60873.0,60867.0,0.04934651]
[1723626965962,0.37064362,60878.0,60867.0,0.06134651]
[1723626965963,0.001,60874.0,60867.0,0.06134651]
[1723626966656,0.001,60874.0,60871.0,0.001]
[1723626967063,0.001,60874.0,60873.0,0.082111]
[1723626968158,0.002,60874.0,60873.0,0.082111]
[1723626969651,0.001,60874.0,60873.0,0.082111]
[1723626972961,0.00024651,60880.0,60875.0,0.082108]
[1723626973153,0.00024651,60880.0,60876.0,0.46]
[1723626974159,0.00024651,60880.0,60876.0,0.0992]
[1723626975361,0.00024651,60880.0,60876.0,0.181307]
[1723626975561,0.00024651,60880.0,60877.0,0.082105]
[1723626976467,0.01024651,60880.0,60877.0,0.082105]
[1723626978658,0.01024651,60880.0,60878.0,0.082103]
[1723626978860,0.01024651,60880.0,60879.0,0.082103]
[1723626979165,0.5339,60892.0,60879.0,0.082103]
[1723626979166,0.00947873,60891.0,60879.0,0.442903]
[1723626979369,0.01,60891.0,60888.0,0.082091]
[1723626979571,0.01,60891.0,60889.0,0.0926]
[1723626979875,0.00115325,60890.0,60889.0,0.1385]
[1723626980974,0.00115325,60890.0,60889.0,0.22059]
[1723626981573,0.01315325,60890.0,60889.0,0.22159]
[1723626982979,0.02515325,60890.0,60889.0,0.22259]
[1723626989370,0.04515325,60890.0,60889.0,0.22259]
[1723626997686,0.04515325,60890.0,60889.0,0.1405]
[1723626997885,0.12724125,60890.0,60889.0,0.1405]
[1723626999988,0.12724125,60890.0,60889.0,0.093]
[1723627003175,0.12724125,60890.0,60889.0,0.17509]
[1723627006787,0.19250667,60890.0,60889.0,0.17509]
[1723627006985,0.12724125,60890.0,60889.0,0.17509]
[1723627007282,0.19250667,60890.0,60889.0,0.17509]
[1723627007686,0.12724125,60890.0,60889.0,0.17509]
[1723627007885,0.24074125,60890.0,60889.0,0.17509]
[1723627008785,0.32282925,60890.0,60889.0,0.002]
[1723627008986,1.29759725,60890.0,60889.0,0.00150698]
[1723627009385,0.40491725,60890.0,60889.0,0.00150698]
[1723627009584,1.29759725,60890.0,60889.0,0.00150698]
[1723627010697,1.32421225,60890.0,60889.0,0.00150698]
[1723627012091,1.21071225,60890.0,60889.0,0.00150698]
[1723627012290,0.81071225,60890.0,60889.0,0.00150698]
[1723627014087,0.15385625,60890.0,60889.0,0.00150698]
[1723627014288,0.12724125,60890.0,60889.0,0.00150698]
[1723627017891,0.04515325,60890.0,60889.0,0.08359698]
[1723627018585,0.11075181,60890.0,60889.0,0.08359698]
[1723627018990,0.02515325,60890.0,60889.0,1.70306698]
[1723627019189,0.001,60894.0,60893.0,0.082084]
[1723627019391,0.00024651,60896.0,60895.0,0.082082]
[1723627020996,0.00024651,60896.0,60895.0,0.14756205]
[1723627021897,0.00024651,60896.0,60895.0,0.082082]
[1723627022097,0.00024651,60896.0,60895.0,0.128082]
[1723627023200,0.00524651,60896.0,60895.0,0.128082]
[1723627025297,0.00624651,60896.0,60895.0,0.128082]
[1723627025504,0.00624651,60896.0,60895.0,0.046]
[1723627030200,0.00624651,60896.0,60895.0,0.128082]
[1723627032200,0.00624651,60896.0,60895.0,0.046]
[1723627033299,0.00624651,60896.0,60895.0,0.128082]
[1723627043502,0.07174138,60896.0,60895.0,0.128082]
[1723627043703,0.07174138,60896.0,60895.0,0.19352813]
[1723627044913,0.00624651,60896.0,60895.0,0.128082]
[1723627045710,0.00624651,60896.0,60895.0,0.241582]
[1723627048025,0.00624651,60896.0,60895.0,0.602382]
[1723627049906,0.07174138,60896.0,60895.0,0.602382]
[1723627051513,0.07174138,60896.0,60895.0,0.488882]
[1723627053909,0.00624651,60896.0,60895.0,0.488882]
[1723627054111,0.07174138,60896.0,60895.0,0.488882]
[1723627054510,0.00624651,60896.0,60895.0,0.488882]
[1723627055311,0.07189101,60896.0,60895.0,0.488882]
[1723627058910,0.07189101,60896.0,60892.0,0.0494]
[1723627058911,0.082084,60893.0,60892.0,0.0494]
[1723627059116,0.195584,60893.0,60892.0,0.0494]
[1723627059317,0.082087,60891.0,60890.0,0.0478]
[1723627059925,0.164174,60891.0,60890.0,0.0478]
[1723627060126,0.082096,60884.0,60881.0,0.049]
[1723627060324,0.195596,60884.0,60881.0,0.049]
[1723627060525,0.32057397,60884.0,60881.0,0.049]
[1723627060923,0.22220958,60884.0,60881.0,0.049]
[1723627062323,0.32052053,60884.0,60881.0,0.049]
[1723627062622,0.32052053,60884.0,60883.0,0.00924651]
[1723627063231,0.22220958,60884.0,60883.0,0.00924651]
[1723627063534,0.32044161,60884.0,60883.0,0.00924651]
[1723627063713,0.22220958,60884.0,60883.0,0.00924651]
[1723627063921,0.22220958,60884.0,60883.0,0.01824651]
[1723627064420,0.3204068,60884.0,60883.0,0.01824651]
[1723627065025,0.8131668,60884.0,60883.0,0.01824651]
[1723627065421,0.72446021,60884.0,60883.0,0.01824651]
[1723627067630,0.69784663,60884.0,60883.0,0.01824651]
[1723627067817,1.05864663,60884.0,60883.0,0.01824651]
[1723627069631,0.56588663,60884.0,60883.0,0.01824651]
[1723627072928,0.082105,60878.0,60876.0,0.047]
[1723627073234,0.195606,60877.0,60876.0,0.047]
[1723627073635,0.082109,60875.0,60874.0,0.0466]
[1723627074135,0.082106,60878.0,60874.0,0.0466]
[1723627074433,0.1135,60875.0,60874.0,0.0466]
[1723627074823,0.1135,60875.0,60874.0,0.128709]
[1723627076037,0.1145,60875.0,60874.0,0.134709]
[1723627077327,0.1145,60875.0,60874.0,0.139709]
[1723627082338,0.196609,60875.0,60874.0,0.0576]
[1723627082536,0.881518,60875.0,60874.0,0.00409326]
[1723627082730,1.642318,60875.0,60874.0,0.00409326]
[1723627082933,1.70773338,60875.0,60874.0,0.00409326]
[1723627083134,1.642318,60875.0,60874.0,0.00409326]
[1723627083444,1.65195261,60875.0,60874.0,0.00409326]
[1723627083737,1.25195261,60875.0,60874.0,0.00409326]
[1723627083938,1.65195261,60875.0,60874.0,0.00409326]
[1723627084138,1.71738997,60875.0,60874.0,0.00409326]
[1723627084534,1.65195261,60875.0,60874.0,0.00409326]
[1723627086038,0.75915261,60875.0,60874.0,0.00409326]
[1723627086235,1.65195261,60875.0,60874.0,0.00409326]
[1723627087540,1.73372183,60875.0,60874.0,0.00409326]
[1723627088244,1.65195261,60875.0,60874.0,0.00409326]
[1723627088439,1.29115261,60875.0,60874.0,0.00409326]
[1723627088840,1.73380875,60875.0,60874.0,0.00409326]
[1723627089044,1.65195261,60875.0,60874.0,0.00409326]
[1723627089239,1.73379722,60875.0,60874.0,0.00409326]
[1723627089435,1.27857482,60875.0,60874.0,0.00409326]
[1723627090041,1.33382437,60875.0,60874.0,0.00409326]
[1723627091543,0.56354361,60875.0,60874.0,0.00409326]
[1723627091740,0.67704361,60875.0,60874.0,0.00409326]
[1723627091933,0.74254749,60875.0,60874.0,0.00409326]
[1723627092746,0.74255156,60875.0,60874.0,0.00409326]
[1723627092945,0.54694256,60875.0,60874.0,0.00409326]
[1723627093144,0.001,60875.0,60874.0,0.44700326]
[1723627093641,0.001,60875.0,60874.0,0.51265642]
[1723627093847,0.001,60878.0,60874.0,0.99476642]
[1723627094037,0.00024651,60881.0,60880.0,0.082102]
[1723627094234,0.00024651,60881.0,60880.0,0.73748227]
[1723627094845,0.06550795,60892.0,60881.0,0.082101]
[1723627095038,0.06550795,60894.0,60892.0,0.082086]
[1723627095244,0.06550795,60897.0,60892.0,0.082086]
[1723627095452,0.06550795,60898.0,60892.0,0.90248]
[1723627095645,0.1135,60899.0,60898.0,0.082078]
[1723627095957,0.3608,60901.0,60899.0,0.082076]
[1723627097146,0.442874,60901.0,60894.0,0.082082]
[1723627097449,0.442874,60901.0,60894.0,0.04910372]